bitfinex-derivatives/quotes_SOLF0:USTF0_20250404
["timestamp","ask_amount","ask_price","bid_price","bid_amount"]
[1743734984487,42.51031072,116.05,115.98,42.51031072]
[1743734984684,8.69031072,116.03,116.0,62.0]
[1743734985191,17.31241072,116.03,116.0,62.0]
[1743734985489,17.37404039,116.03,116.0,62.06072561]
[1743734988090,17.37404039,116.03,116.0,70.68452561]
[1743734989891,17.37404039,116.03,116.0,62.06072561]
[1743734991290,8.6224,116.02,116.0,62.06072561]
[1743734991493,17.31271072,116.02,116.0,0.06072561]
[1743734991794,8.6257,115.98,115.94,8.69031072]
[1743734992093,8.69031072,115.99,115.92,390.7778031]
[1743734992391,33.8,115.99,115.97,8.6256]
[1743734992590,8.69031072,116.0,115.97,8.6256]
[1743734992998,8.75364569,116.0,115.98,8.6253]
[1743734993291,8.75364569,116.0,115.97,0.06197176]
[1743734993593,8.75364569,116.0,115.97,8.68777176]
[1743734993783,8.75364569,116.0,115.97,0.06197176]
[1743734994593,17.37764569,116.0,115.97,0.06197176]
[1743734995192,17.31511072,115.99,115.97,0.06197176]
[1743734997288,8.69031072,115.99,115.97,0.06197176]
[1743734998798,17.31511072,115.99,115.97,0.06197176]
[1743735002895,8.69031072,115.99,115.97,0.06197176]
[1743735005102,8.69031072,115.98,115.97,0.06197176]
[1743735005802,8.69031072,115.98,115.97,8.68807176]
[1743735007106,8.69031072,115.99,115.98,8.6251]
[1743735007405,0.06333497,116.0,115.98,8.6251]
[1743735007595,0.06333497,116.0,115.97,0.06197176]
[1743735008005,8.69031072,115.99,115.97,8.68777176]
[1743735008303,8.69031072,115.98,115.97,8.68777176]
[1743735008599,8.69031072,115.98,115.97,0.06197176]
[1743735009006,42.49031072,115.98,115.97,0.06197176]
[1743735011507,42.49031072,115.98,115.97,8.68807176]
[1743735012006,8.69031072,115.99,115.97,8.68807176]
[1743735012208,33.86333497,116.0,115.97,8.68807176]
[1743735012506,8.69031072,115.99,115.97,8.68807176]
[1743735012708,42.55364569,116.0,115.97,8.68807176]
[1743735015314,8.69031072,115.99,115.97,8.68807176]
[1743735017211,8.69031072,115.99,115.97,0.06197176]
[1743735017511,8.69031072,115.98,115.97,0.06197176]
[1743735019113,8.69031072,115.99,115.97,0.06197176]
[1743735019313,42.55364569,116.0,115.97,0.06197176]
[1743735019715,42.55364569,116.0,115.97,8.68797176]
[1743735020814,42.55364569,116.0,115.97,0.06197176]
[1743735021212,8.69031072,115.99,115.97,0.06197176]
[1743735021515,51.17794569,116.0,115.97,0.06197176]
[1743735023718,51.17794569,116.0,115.97,8.68797176]
[1743735023916,42.55364569,116.0,115.97,8.68797176]
[1743735024319,0.06333497,116.0,115.97,8.68797176]
[1743735024518,17.37794569,116.0,115.97,0.06197176]
[1743735026119,8.68763497,116.0,115.97,0.06197176]
[1743735027920,0.06333497,116.0,115.97,8.75228248]
[1743735028324,0.06333497,116.0,115.97,0.06197176]
[1743735028519,8.75364569,116.0,115.97,8.68777176]
[1743735031119,17.37764569,116.0,115.97,8.68777176]
[1743735032323,8.75364569,116.0,115.97,8.68777176]
[1743735036223,8.75364569,116.0,115.97,0.06197176]
[1743735036728,8.69031072,115.98,115.97,0.06197176]
[1743735037024,42.45031072,115.98,115.9,8.69031072]
[1743735037225,8.69031072,115.96,115.92,8.6293]
[1743735037427,8.69031072,115.95,115.92,8.6293]
[1743735038026,8.75528154,115.95,115.92,8.68900369]
[1743735038730,8.69031072,115.93,115.92,0.05970369]
[1743735038920,8.69031072,115.93,115.88,48.12680249]
[1743735039122,8.69031072,115.91,115.88,56.75920249]
[1743735039526,8.69031072,115.91,115.88,8.6324]
[1743735039929,42.3699,115.92,115.88,8.6324]
[1743735039930,8.69031072,115.9,115.88,8.6324]
[1743735040329,8.75646125,115.91,115.89,8.6321]
[1743735044025,8.75646125,115.91,115.88,8.6324]
[1743735044224,8.69031072,115.89,115.83,8.69031072]
[1743735044432,8.69031072,115.87,115.82,8.69031072]
[1743735044635,8.69031072,115.86,115.84,8.6352]
[1743735045734,8.69031072,115.86,115.85,8.6351]
[1743735045935,8.75658039,115.87,115.85,8.6351]
[1743735047040,8.75658039,115.87,115.84,8.6355]
[1743735047240,8.69031072,115.86,115.84,70.6355]
[1743735047441,8.69031072,115.86,115.84,62.0]
[1743735048643,8.69031072,115.86,115.83,8.6361]
[1743735050239,8.69031072,115.86,115.84,8.6358]
[1743735050446,8.69031072,115.86,115.81,42.43031072]
[1743735050645,8.69031072,115.84,115.74,894.4]
[1743735050849,8.69031072,115.84,115.81,8.6377]
[1743735051047,8.69031072,115.83,115.81,8.6377]
[1743735051242,8.69031072,115.83,115.78,8.69031072]
[1743735051447,8.69031072,115.81,115.76,8.69031072]
[1743735051644,8.69031072,115.8,115.77,62.0]
[1743735052149,8.69031072,115.78,115.74,8.69031072]
[1743735052549,0.06524976,115.77,115.75,8.642]
[1743735053147,0.06524976,115.77,115.73,8.69031072]
[1743735054047,0.06524976,115.77,115.76,8.6418]
[1743735055049,0.06524976,115.77,115.76,17.33211072]
[1743735055241,0.06524976,115.77,115.76,79.33211072]
[1743735055750,33.76,115.81,115.76,70.69031072]
[1743735055949,8.69031072,115.82,115.77,8.69031072]
[1743735056150,580.85031072,115.83,115.82,8.6373]
[1743735057049,580.85031072,115.83,115.81,8.69670027]
[1743735057254,8.69031072,115.82,115.81,8.69670027]
[1743735058454,8.69031072,115.82,115.81,0.05890027]
[1743735058751,8.69031072,115.82,115.77,8.69031072]
[1743735058752,8.69031072,115.82,115.76,70.69031072]
[1743735058952,8.69031072,115.8,115.76,70.69031072]
[1743735059152,42.45031072,115.8,115.76,62.0]
[1743735059454,8.69031072,115.79,115.76,62.0]
[1743735059660,8.69031072,115.79,115.77,8.6403]
[1743735059955,0.06446407,115.79,115.76,70.69031072]
[1743735060355,0.06446407,115.79,115.78,8.6403]
[1743735061359,2.1939,115.84,115.83,8.6366]
[1743735063255,2.1939,115.84,115.82,8.7015758]
[1743735063461,42.45031072,115.83,115.82,0.0646758]
[1743735063655,33.76,115.83,115.76,109.29384464]
[1743735064057,42.3967,115.83,115.78,8.6402]
[1743735064458,42.3967,115.83,115.76,62.0]
[1743735064459,13.53384464,115.82,115.76,62.0]
[1743735064759,0.06182503,115.8,115.77,8.6404]
[1743735065058,0.06182503,115.8,115.76,62.0]
[1743735065252,0.06182503,115.8,115.76,75.53384464]
[1743735065659,0.06182503,115.8,115.79,8.6396]
[1743735072460,2.2843,115.86,115.83,8.6365]
[1743735072863,10.9189,115.86,115.83,8.6365]
[1743735073161,2.2843,115.86,115.83,8.6365]
[1743735073762,2.34794897,115.86,115.83,8.70049013]
[1743735075864,10.98244897,115.86,115.83,0.06399013]
[1743735076065,18.22149361,115.86,115.83,0.06399013]
[1743735076358,33.74,115.85,115.83,0.06399013]
[1743735076567,13.53384464,115.84,115.77,33.74]
[1743735076759,15.79424464,115.84,115.77,33.74]
[1743735076960,8.6374,115.82,115.78,8.6399]
[1743735077364,8.6374,115.82,115.77,33.74]
[1743735077665,0.05720306,115.81,115.77,33.74]
[1743735079160,0.05720306,115.81,115.8,8.6388]
[1743735092275,0.05720306,115.81,115.79,8.6391]
[1743735092875,0.05720306,115.81,115.8,8.6388]
[1743735094282,0.05720306,115.81,115.77,33.74]
[1743735094673,33.77720306,115.81,115.76,62.0]
[1743735094973,8.6393,115.8,115.76,70.6415]
[1743735095174,10.9875,115.8,115.76,70.6415]
[1743735096377,2.3482,115.8,115.76,62.0]
[1743735096574,15.88204464,115.8,115.72,13.53384464]
[1743735096972,8.70104318,115.77,115.73,8.6437]
[1743735098076,0.05964318,115.77,115.74,8.6432]
[1743735098279,0.05964318,115.77,115.72,13.53384464]
[1743735098573,0.05964318,115.77,115.74,8.6428]
[1743735098878,0.05964318,115.77,115.72,47.25384464]
[1743735099473,0.05964318,115.77,115.74,8.6428]
[1743735101279,0.05964318,115.77,115.74,8.6431]
[1743735102284,8.70084318,115.77,115.74,8.6431]
[1743735102477,8.70084318,115.77,115.73,70.6437]
[1743735102678,0.05964318,115.77,115.73,70.6437]
[1743735102875,8.6426,115.75,115.73,62.0]
[1743735103384,8.6419,115.76,115.73,62.0]
[1743735105286,10.8384,115.76,115.73,62.0]
[1743735105684,19.50932843,115.76,115.73,62.0]
[1743735105886,8.6425,115.75,115.73,62.0]
[1743735106188,8.6425,115.75,115.71,17.31612843]
[1743735106687,0.06210604,115.74,115.71,17.31612843]
[1743735107188,0.06210604,115.74,115.72,8.6447]
[1743735107391,0.06210604,115.74,115.71,8.67092843]
[1743735107684,8.73303447,115.74,115.69,8.67092843]
[1743735108082,8.73303447,115.74,115.7,8.6455]
[1743735108490,8.73303447,115.74,115.69,8.67092843]
[1743735108690,8.73303447,115.74,115.71,8.6454]
[1743735110189,17.37643447,115.74,115.7,70.6459]
[1743735110383,8.67092843,115.72,115.68,8.67092843]
[1743735110586,8.67092843,115.7,115.64,35.376]
[1743735110790,8.67092843,115.7,115.66,17.31992843]
[1743735111285,0.05503342,115.69,115.66,17.31992843]
[1743735111694,0.05503342,115.69,115.64,47.28153477]
[1743735111991,0.05503342,115.69,115.64,33.72]
[1743735112189,8.70243342,115.69,115.63,13.56153477]
[1743735112592,42.40243342,115.69,115.63,13.56153477]
[1743735112894,42.40243342,115.69,115.65,8.65]
[1743735113495,42.40243342,115.69,115.65,70.65]
[1743735113795,8.6478,115.68,115.65,70.65]
[1743735114496,8.6478,115.68,115.65,62.0]
[1743735114796,42.40243342,115.69,115.65,62.0]
[1743735114996,0.05503342,115.69,115.65,75.56153477]
[1743735115297,0.05503342,115.69,115.65,109.26153477]
[1743735116595,0.05503342,115.69,115.67,8.6482]
[1743735116796,0.05503342,115.69,115.65,109.26153477]
[1743735118096,0.05503342,115.69,115.67,8.6478]
[1743735119795,0.05503342,115.69,115.66,8.6488]
[1743735120197,0.05503342,115.69,115.65,95.7]
[1743735120595,0.05503342,115.69,115.67,8.6482]
[1743735120796,0.05503342,115.69,115.65,95.7]
[1743735122395,0.05503342,115.69,115.68,13.56153477]
[1743735122700,0.05503342,115.69,115.66,13.56153477]
[1743735123000,0.05503342,115.69,115.68,8.6478]
[1743735123302,0.05503342,115.69,115.67,8.6481]
[1743735123799,0.05503342,115.69,115.66,13.56153477]
[1743735126006,0.05503342,115.69,115.68,8.6478]
[1743735128906,0.05503342,115.69,115.65,62.0]
[1743735129206,0.05503342,115.69,115.65,95.7]
[1743735129507,0.05503342,115.69,115.65,62.0]
[1743735129708,0.05503342,115.69,115.66,8.6488]
[1743735130104,0.05503342,115.69,115.65,62.0]
[1743735130310,2.40713342,115.69,115.65,62.0]
[1743735130515,11.05443342,115.69,115.65,62.0]
[1743735130806,2.40713342,115.69,115.66,8.6486]
[1743735131312,2.40713342,115.69,115.65,70.6496]
[1743735131618,2.40713342,115.69,115.65,62.0]
[1743735131912,0.05503342,115.69,115.65,62.0]
[1743735132413,0.05503342,115.69,115.67,8.6482]
[1743735136611,0.05503342,115.69,115.66,42.37905288]
[1743735136808,0.05503342,115.69,115.67,8.67905288]
[1743735137313,0.05503342,115.69,115.68,8.6478]
[1743735138513,0.05503342,115.69,115.68,17.32685288]
[1743735141210,0.05503342,115.69,115.67,17.32715288]
[1743735142313,0.05503342,115.69,115.66,51.02795288]
[1743735142617,0.05503342,115.69,115.66,33.7]
[1743735143409,0.05503342,115.69,115.66,42.3488]
[1743735144413,0.05503342,115.69,115.66,8.6488]
[1743735146022,0.05503342,115.69,115.67,8.6484]
[1743735146222,0.05503342,115.69,115.68,8.67905288]
[1743735146520,0.05503342,115.69,115.68,17.32685288]
[1743735146722,11.04505288,115.73,115.68,8.67905288]
[1743735146921,11.04505288,115.73,115.69,8.67905288]
[1743735147124,11.04505288,115.73,115.7,8.646]
[1743735147520,8.67905288,115.72,115.67,33.68]
[1743735147723,8.67905288,115.71,115.66,8.67905288]
[1743735147922,8.74368859,115.71,115.68,0.05807454]
[1743735149122,8.74368859,115.71,115.68,8.70547454]
[1743735149724,17.38928859,115.71,115.68,8.70547454]
[1743735150821,0.06463571,115.71,115.69,8.67905288]
[1743735151127,0.06463571,115.71,115.68,8.73712742]
[1743735151321,0.06463571,115.71,115.68,17.38452742]
[1743735151720,17.38978859,115.71,115.68,0.05807454]
[1743735152726,8.6463,115.7,115.68,0.05807454]
[1743735153126,8.74368859,115.71,115.68,0.05807454]
[1743735153323,8.6463,115.7,115.68,0.05807454]
[1743735153523,8.67905288,115.7,115.68,0.05807454]
[1743735154427,8.6466,115.7,115.68,0.05807454]
[1743735154625,42.42368859,115.71,115.68,0.05807454]
[1743735154825,33.74463571,115.71,115.68,0.05807454]
[1743735156227,33.74463571,115.71,115.68,8.70547454]
[1743735156726,33.74463571,115.71,115.68,0.05807454]
[1743735156727,51.06938859,115.71,115.68,0.05807454]
[1743735157227,8.6464,115.7,115.68,0.05807454]
[1743735157728,51.06968859,115.71,115.68,0.05807454]
[1743735158128,51.06968859,115.71,115.68,8.70587454]
[1743735159229,8.6463,115.7,115.68,0.05807454]
[1743735159429,17.32535288,115.7,115.68,0.05807454]
[1743735160630,8.67905288,115.7,115.68,0.05807454]
[1743735161930,33.74463571,115.71,115.68,0.05807454]
[1743735162524,33.74463571,115.71,115.68,8.70557454]
[1743735162731,42.42368859,115.71,115.68,0.05807454]
[1743735163130,51.06988859,115.71,115.68,0.05807454]
[1743735164224,8.6464,115.7,115.68,0.05807454]
[1743735165036,51.06968859,115.71,115.68,0.05807454]
[1743735165328,51.06968859,115.71,115.68,8.70587454]
[1743735165733,42.39063571,115.71,115.68,8.70587454]
[1743735166128,8.6463,115.7,115.68,0.05807454]
[1743735166323,10.8616,115.7,115.68,0.05807454]
[1743735166524,2.2153,115.7,115.68,0.05807454]
[1743735167426,10.862,115.7,115.68,0.05807454]
[1743735167629,19.54105288,115.7,115.66,8.6489]
[1743735168827,0.0640366,115.69,115.66,8.6489]
[1743735169032,8.74308948,115.69,115.65,70.6497]
[1743735169233,42.33905288,115.68,115.62,8.67905288]
[1743735169430,8.67905288,115.67,115.62,8.67905288]
[1743735169630,0.0640101,115.66,115.63,8.6509]
[1743735169834,8.74306298,115.66,115.62,8.67905288]
[1743735170331,8.7137101,115.66,115.62,17.33075288]
[1743735170529,8.7137101,115.66,115.62,8.67905288]
[1743735170827,0.0640101,115.66,115.63,8.6512]
[1743735172126,0.0640101,115.66,115.64,62.0]
[1743735174032,8.7133101,115.66,115.64,62.0]
[1743735174238,8.7133101,115.66,115.61,33.66]
[1743735174239,8.74306298,115.66,115.61,8.67905288]
[1743735174431,11.03686298,115.66,115.61,8.67905288]
[1743735175037,8.6503,115.65,115.62,8.6523]
[1743735175532,8.6503,115.65,115.61,8.67905288]
[1743735175733,8.6503,115.65,115.61,17.33155288]
[1743735176038,8.6503,115.65,115.61,8.6525]
[1743735176228,8.6503,115.65,115.61,17.33155288]
[1743735176533,17.32935288,115.65,115.61,17.33155288]
[1743735177240,17.32935288,115.65,115.62,62.0]
[1743735179341,11.0075101,115.66,115.62,79.33125288]
[1743735180940,11.0075101,115.66,115.62,62.0]
[1743735181143,11.0075101,115.66,115.62,70.67905288]
[1743735181741,11.0075101,115.66,115.62,79.33135288]
[1743735182143,2.3578101,115.66,115.63,8.67905288]
[1743735182343,0.0640101,115.66,115.64,8.6504]
[1743735183240,0.0640101,115.66,115.63,17.33015288]
[1743735183544,0.0640101,115.66,115.63,8.67905288]
[1743735183843,8.7133101,115.66,115.63,8.67905288]
[1743735184443,8.7133101,115.66,115.63,17.33055288]
[1743735185442,0.0640101,115.66,115.63,17.33055288]
[1743735188247,8.7134101,115.66,115.63,17.33055288]
[1743735188555,0.0640101,115.66,115.63,17.33055288]
[1743735189048,8.7133101,115.66,115.63,17.33055288]
[1743735190545,0.0640101,115.66,115.64,8.6504]
[1743735190744,0.0640101,115.66,115.64,8.67905288]
[1743735191349,0.0640101,115.66,115.65,8.65]
[1743735191745,0.0640101,115.66,115.64,8.67905288]
[1743735192050,0.0640101,115.66,115.64,17.32955288]
[1743735192349,0.0640101,115.66,115.64,8.67905288]
[1743735192846,0.0640101,115.66,115.65,8.65]
[1743735193147,0.0640101,115.66,115.64,8.67905288]
[1743735193148,0.0640101,115.66,115.62,95.64]
[1743735193346,0.0640101,115.66,115.64,8.67905288]
[1743735193548,0.0640101,115.66,115.63,8.67905288]
[1743735193748,0.0640101,115.66,115.64,17.32955288]
[1743735193949,0.0640101,115.66,115.64,8.6505]
[1743735200055,8.7133101,115.66,115.63,17.33005288]
[1743735200857,8.7133101,115.66,115.64,8.6507]
[1743735201060,8.7133101,115.66,115.63,8.67905288]
[1743735201460,8.7133101,115.66,115.63,17.32985288]
[1743735201757,0.0640101,115.66,115.63,8.67905288]
[1743735201959,0.0640101,115.66,115.63,8.6513]
[1743735202159,0.0640101,115.66,115.62,104.31905288]
[1743735202459,8.6501,115.65,115.62,70.67905288]
[1743735202666,8.6501,115.65,115.62,70.6521]
[1743735203855,19.77006298,115.66,115.62,70.6521]
[1743735205062,19.77006298,115.66,115.63,8.6514]
[1743735205762,19.77006298,115.66,115.62,70.6518]
[1743735205959,11.12046298,115.66,115.62,70.67905288]
[1743735206454,11.12046298,115.66,115.63,8.6515]
[1743735206853,19.76986298,115.66,115.62,70.67905288]
[1743735207056,19.76986298,115.66,115.62,79.33085288]
[1743735207353,19.76986298,115.66,115.62,70.67905288]
[1743735207964,8.6501,115.65,115.62,79.33085288]
[1743735208159,8.67905288,115.64,115.59,8.67905288]
[1743735208367,8.67905288,115.62,115.58,8.67905288]
[1743735208561,17.33165288,115.62,115.58,17.33395288]
[1743735210660,8.6531,115.61,115.58,17.33395288]
[1743735211156,8.71049696,115.61,115.59,62.0]
[1743735213369,8.71049696,115.61,115.57,17.33455288]
[1743735215169,8.6539,115.6,115.57,17.33455288]
[1743735216370,8.6539,115.6,115.58,70.6551]
[1743735216867,8.71079696,115.61,115.58,70.6551]
[1743735217070,8.71079696,115.61,115.58,79.33415288]
[1743735218967,0.05739696,115.61,115.59,8.6545]
[1743735219171,0.05739696,115.61,115.59,17.33355288]
[1743735219574,0.05739696,115.61,115.6,17.33285288]
[1743735226079,44.67645288,115.66,115.6,8.67905288]
[1743735226378,19.70615288,115.66,115.62,8.67905288]
[1743735226677,19.70615288,115.66,115.63,8.6512]
[1743735227179,19.76509923,115.66,115.63,8.70966052]
[1743735227678,11.11539923,115.66,115.63,8.70966052]
[1743735228678,11.11539923,115.66,115.63,0.05846052]
[1743735229178,19.76469923,115.66,115.63,8.70956052]
[1743735229379,19.76469923,115.66,115.63,0.05846052]
[1743735229881,19.76469923,115.66,115.63,8.70966052]
[1743735230879,11.11539923,115.66,115.63,8.70966052]
[1743735231275,8.67905288,115.65,115.63,8.70966052]
[1743735233580,8.67905288,115.65,115.63,0.05846052]
[1743735235579,8.67905288,115.64,115.63,0.05846052]
[1743735236180,17.32985288,115.64,115.63,0.05846052]
[1743735237683,8.67905288,115.64,115.63,0.05846052]
[1743735238485,17.32985288,115.64,115.63,0.05846052]
[1743735240387,8.6508,115.64,115.63,0.05846052]
[1743735241884,8.6524,115.62,115.59,8.67905288]
[1743735242083,8.67905288,115.63,115.58,70.67905288]
[1743735242387,42.25905288,115.63,115.58,79.33405288]
[1743735242583,8.6526,115.62,115.58,79.33405288]
[1743735243106,0.06176369,115.61,115.58,79.33405288]
[1743735247392,0.06176369,115.61,115.59,8.6544]
[1743735247691,0.06176369,115.61,115.59,17.33345288]
[1743735250403,0.06176369,115.61,115.6,17.33285288]
[1743735251101,44.63645288,115.66,115.6,8.67905288]
[1743735251301,8.67905288,115.65,115.6,8.67905288]
[1743735251501,8.67905288,115.65,115.62,8.652]
[1743735251697,8.67905288,115.65,115.61,8.67905288]
[1743735252103,8.71635064,115.64,115.62,0.05697382]
[1743735252701,0.06545064,115.64,115.62,0.05697382]
[1743735255099,8.71625064,115.64,115.62,0.05697382]
[1743735256405,8.6515,115.63,115.62,0.05697382]
[1743735259008,17.33055288,115.63,115.62,0.05697382]
[1743735260909,8.6545,115.6,115.58,70.67905288]
[1743735261611,8.6545,115.59,115.58,70.67905288]
[1743735262210,8.71730731,115.6,115.58,70.67905288]
[1743735262412,0.06310731,115.6,115.58,70.67905288]
[1743735262815,8.6545,115.59,115.58,70.67905288]
[1743735263915,0.06310731,115.6,115.56,8.67905288]
[1743735264511,8.74216019,115.6,115.55,42.23905288]
[1743735264710,8.6572,115.56,115.55,42.23905288]
[1743735264914,0.06083039,115.59,115.55,42.23905288]
[1743735265112,10.92235288,115.61,115.56,8.67905288]
[1743735265312,0.06396291,115.58,115.56,8.67905288]
[1743735266715,8.71956291,115.58,115.56,8.67905288]
[1743735266915,8.71956291,115.58,115.57,62.0]
[1743735268119,0.06396291,115.58,115.57,62.0]
[1743735270217,8.71926291,115.58,115.57,62.0]
[1743735270413,0.06396291,115.58,115.54,8.6578]
[1743735270614,8.67905288,115.59,115.54,17.33685288]
[1743735270814,8.71441261,115.57,115.54,17.33685288]
[1743735272019,8.6568,115.56,115.54,8.67905288]
[1743735272216,0.05791261,115.57,115.54,8.67905288]
[1743735273217,8.6571,115.56,115.54,8.67905288]
[1743735273417,8.6571,115.56,115.55,62.0]
[1743735275821,8.71421261,115.57,115.55,62.0]
[1743735276119,0.05791261,115.57,115.55,62.0]
[1743735276823,8.6568,115.56,115.55,62.0]
[1743735278620,8.6568,115.56,115.53,8.6588]
[1743735279120,0.05791261,115.57,115.55,8.6575]
[1743735279322,0.05791261,115.57,115.54,8.67905288]
[1743735279519,8.71391261,115.57,115.54,8.67905288]
[1743735279723,8.71391261,115.57,115.54,17.33685288]
[1743735280326,8.6568,115.56,115.54,17.33685288]
[1743735280523,8.6568,115.56,115.54,8.67905288]
[1743735281026,0.05791261,115.57,115.55,8.67905288]
[1743735281221,0.05791261,115.57,115.56,17.33585288]
[1743735281721,0.05791261,115.57,115.56,79.33585288]
[1743735282826,0.05791261,115.57,115.56,70.67905288]
[1743735284425,0.05791261,115.57,115.56,79.33585288]
[1743735285021,0.05791261,115.57,115.56,62.0]
[1743735285325,0.05791261,115.57,115.55,17.33615288]
[1743735285326,8.71391261,115.57,115.54,42.21905288]
[1743735285928,8.71391261,115.57,115.54,8.67905288]
[1743735286123,8.71391261,115.57,115.52,33.54]
[1743735286124,8.71391261,115.57,115.53,8.67905288]
[1743735286324,8.6569,115.56,115.53,17.33765288]
[1743735286828,8.6577,115.55,115.52,8.6591]
[1743735287027,8.6577,115.55,115.52,8.67905288]
[1743735287224,0.06398273,115.55,115.52,8.67905288]
[1743735287521,0.06398273,115.55,115.53,8.6586]
[1743735287926,0.06398273,115.55,115.53,17.33765288]
[1743735288227,0.06398273,115.55,115.54,62.0]
[1743735289327,0.06398273,115.55,115.54,70.6583]
[1743735290030,0.06398273,115.55,115.54,62.0]
[1743735296435,8.72148273,115.55,115.54,62.0]
[1743735296631,0.06398273,115.55,115.54,62.0]
[1743735297431,0.06398273,115.55,115.54,70.67905288]
[1743735297732,0.06398273,115.55,115.54,62.0]
[1743735298031,0.06398273,115.55,115.54,79.33735288]
[1743735298430,0.06398273,115.55,115.54,70.6583]
[1743735298630,0.06398273,115.55,115.54,79.33735288]
[1743735299224,0.06398273,115.55,115.54,62.0]
[1743735299634,8.72148273,115.55,115.54,62.0]
[1743735300035,0.06398273,115.55,115.54,62.0]
[1743735301138,8.72148273,115.55,115.54,62.0]
[1743735301338,0.06398273,115.55,115.52,8.67905288]
[1743735302135,0.06398273,115.55,115.53,8.67905288]
[1743735302533,0.06398273,115.55,115.54,17.33735288]
[1743735304237,0.06398273,115.55,115.54,79.33735288]
[1743735304840,0.06398273,115.55,115.54,70.6583]
[1743735313246,542.3194,115.61,115.54,112.85735288]
[1743735313445,44.46875288,115.6,115.55,8.67905288]
[1743735313649,8.67905288,115.59,115.54,104.19905288]
[1743735313853,8.67905288,115.59,115.54,70.67905288]
[1743735314252,17.33395288,115.59,115.56,8.6567]
[1743735314454,0.05607189,115.58,115.56,8.6567]
[1743735317254,0.05607189,115.58,115.55,8.71354722]
[1743735317454,0.05607189,115.58,115.55,0.05644722]
[1743735317755,0.05607189,115.58,115.56,8.6567]
[1743735320555,0.05607189,115.58,115.57,8.656]
[1743735320956,0.05607189,115.58,115.55,8.7355001]
[1743735321354,0.05607189,115.58,115.56,8.6564]
[1743735322560,0.05607189,115.58,115.57,8.656]
[1743735322859,0.05607189,115.58,115.55,8.7355001]
[1743735323757,0.05607189,115.58,115.56,8.6561]
[1743735324459,8.67905288,115.57,115.55,0.05644722]
[1743735324658,0.05607189,115.58,115.51,8.67905288]
[1743735324659,8.67905288,115.56,115.51,8.67905288]
[1743735325251,8.67905288,115.55,115.5,8.67905288]
[1743735325452,17.33685288,115.55,115.51,8.6602]
[1743735325657,8.67905288,115.55,115.5,8.67905288]
[1743735325957,0.05864311,115.54,115.48,36.1788]
[1743735326260,8.73769599,115.54,115.51,8.6601]
[1743735326457,8.73769599,115.54,115.5,8.67905288]
[1743735326853,0.05864311,115.54,115.52,8.6597]
[1743735327059,8.73769599,115.54,115.48,36.1788]
[1743735327256,0.05864311,115.54,115.51,8.6601]
[1743735327560,0.05864311,115.54,115.51,70.6601]
[1743735327761,0.05864311,115.54,115.51,62.0]
[1743735328061,8.73769599,115.54,115.49,8.67905288]
[1743735328265,8.67905288,115.53,115.48,11.06745288]
[1743735328459,17.33845288,115.53,115.49,8.6615]
[1743735328659,0.054587,115.52,115.48,8.67905288]
[1743735328964,0.054587,115.52,115.5,17.33985288]
[1743735329160,0.054587,115.52,115.49,8.67905288]
[1743735329363,8.73363988,115.52,115.48,8.67905288]
[1743735329558,8.67905288,115.52,115.48,17.34105288]
[1743735329758,0.05645762,115.51,115.48,8.67905288]
[1743735330059,0.05645762,115.51,115.49,8.6619]
[1743735330264,0.05645762,115.51,115.48,8.67905288]
[1743735330469,8.67905288,115.5,115.45,8.67905288]
[1743735330665,8.67905288,115.49,115.46,8.6642]
[1743735330862,8.7344429,115.49,115.46,8.6642]
[1743735331160,8.7344429,115.49,115.47,62.0]
[1743735331366,0.05539002,115.49,115.47,62.0]
[1743735332367,8.71759002,115.49,115.47,62.0]
[1743735332668,0.05539002,115.49,115.47,62.0]
[1743735333768,8.67905288,115.48,115.44,557.24445288]
[1743735333964,8.67905288,115.48,115.44,8.6654]
[1743735334167,8.67905288,115.48,115.43,8.67905288]
[1743735334367,8.67905288,115.48,115.45,8.6649]
[1743735334567,0.05534893,115.47,115.45,8.67905288]
[1743735334865,0.05534893,115.47,115.46,8.67905288]
[1743735335270,2.2602,115.53,115.46,8.67905288]
[1743735335467,2.2602,115.53,115.49,8.67905288]
[1743735335761,8.67905288,115.52,115.48,8.6623]
[1743735335958,8.67905288,115.51,115.48,8.6623]
[1743735336157,8.67905288,115.51,115.47,8.67905288]
[1743735336362,17.33995288,115.51,115.47,17.34215288]
[1743735336568,0.0599167,115.5,115.48,0.06317772]
[1743735336767,0.0599167,115.5,115.49,62.0]
[1743735337468,0.0599167,115.5,115.48,0.06317772]
[1743735339073,17.40036958,115.5,115.48,0.06317772]
[1743735339570,17.34105288,115.49,115.43,33.5]
[1743735339770,17.34105288,115.49,115.45,17.34365288]